[Event "Late-Titled-Tuesday-Blitz-April-02-2024"]
[Site "Chess.com"]
[Date "2024.04.02"]
[Round "2"]
[White "BardArtem"]
[Black "vladgoncharov"]
[Result "1-0"]
[WhiteElo "2848"]
[BlackElo "2564"]
[TimeControl "180+1"]
[EndTime "14:17:49 PDT"]
[Termination "BardArtem won by resignation"]

1. e4 {[%clk 0:03:00.9]} 1... e6 {[%clk 0:02:59.5]} 2. d4 {[%clk 0:03:00.5]}
2... d5 {[%clk 0:03:00.2]} 3. Nc3 {[%clk 0:03:00.3]} 3... Nf6 {[%clk 0:02:58.8]}
4. exd5 {[%clk 0:02:59.5]} 4... exd5 {[%clk 0:02:58.3]} 5. Bg5 {[%clk
0:02:57.1]} 5... Bb4 {[%clk 0:02:56.7]} 6. Ne2 {[%clk 0:02:56.7]} 6... c6 {[%clk
0:02:53.8]} 7. a3 {[%clk 0:02:55.8]} 7... Ba5 {[%clk 0:02:52.4]} 8. Qd3 {[%clk
0:02:49]} 8... h6 {[%clk 0:02:48.6]} 9. Bh4 {[%clk 0:02:41.2]} 9... O-O {[%clk
0:02:35.1]} 10. O-O-O {[%clk 0:02:29.8]} 10... b5 {[%clk 0:02:34.7]} 11. Qf3
{[%clk 0:02:17.3]} 11... b4 {[%clk 0:02:30.7]} 12. axb4 {[%clk 0:02:16.8]} 12...
Bxb4 {[%clk 0:02:30.5]} 13. Bxf6 {[%clk 0:02:16.1]} 13... Qxf6 {[%clk
0:02:28.2]} 14. Qxf6 {[%clk 0:02:16.3]} 14... gxf6 {[%clk 0:02:28.8]} 15. Ng3
{[%clk 0:02:16.7]} 15... a5 {[%clk 0:02:00.1]} 16. Na4 {[%clk 0:02:09.1]} 16...
Nd7 {[%clk 0:01:55.6]} 17. Bd3 {[%clk 0:02:07]} 17... Re8 {[%clk 0:01:49.8]} 18.
Nf5 {[%clk 0:01:59.4]} 18... Bf8 {[%clk 0:01:47.7]} 19. Rde1 {[%clk 0:01:57]}
19... Bb7 {[%clk 0:01:46.8]} 20. c3 {[%clk 0:01:43.6]} 20... Re6 {[%clk
0:01:45.2]} 21. Re3 {[%clk 0:01:32.4]} 21... Rxe3 {[%clk 0:01:37.7]} 22. Nxe3
{[%clk 0:01:16.7]} 22... c5 {[%clk 0:01:35.7]} 23. Bf5 {[%clk 0:00:53.7]} 23...
cxd4 {[%clk 0:01:33.6]} 24. cxd4 {[%clk 0:00:54.6]} 24... Bc6 {[%clk 0:01:32.9]}
25. Bxd7 {[%clk 0:00:53.8]} 25... Bxd7 {[%clk 0:01:32.1]} 26. Nb6 {[%clk
0:00:54.7]} 26... Rd8 {[%clk 0:01:26.2]} 27. Nxd7 {[%clk 0:00:52.1]} 27... Rxd7
{[%clk 0:01:27.1]} 28. Kc2 {[%clk 0:00:50.7]} 28... Kh7 {[%clk 0:01:20.6]} 29.
g4 {[%clk 0:00:43.8]} 29... Kg6 {[%clk 0:01:18.4]} 30. h4 {[%clk 0:00:43.3]}
30... Rc7+ {[%clk 0:01:10.8]} 31. Kd3 {[%clk 0:00:30.8]} 31... Rb7 {[%clk
0:01:10.2]} 32. Kc2 {[%clk 0:00:24.7]} 32... Rb5 {[%clk 0:01:02.1]} 33. f4
{[%clk 0:00:22.4]} 33... Bd6 {[%clk 0:00:51.5]} 34. h5+ {[%clk 0:00:17.7]} 34...
Kh7 {[%clk 0:00:51]} 35. Rf1 {[%clk 0:00:18.6]} 35... a4 {[%clk 0:00:43.8]} 36.
Nf5 {[%clk 0:00:19.1]} 36... Bf8 {[%clk 0:00:43.7]} 37. Ra1 {[%clk 0:00:18.3]}
37... Rb4 {[%clk 0:00:39.9]} 38. Kc3 {[%clk 0:00:17.8]} 38... Rc4+ {[%clk
0:00:39.6]} 39. Kd3 {[%clk 0:00:17.9]} 39... Rb4 {[%clk 0:00:39.8]} 40. Ra2
{[%clk 0:00:18.6]} 40... Rb3+ {[%clk 0:00:35.5]} 41. Kc2 {[%clk 0:00:18.6]}
41... Rb4 {[%clk 0:00:35.7]} 42. Ra3 {[%clk 0:00:13.1]} 42... Rc4+ {[%clk
0:00:21.7]} 43. Rc3 {[%clk 0:00:12.5]} 43... Rxc3+ {[%clk 0:00:20.5]} 44. bxc3
{[%clk 0:00:05.3]} 44... Ba3 {[%clk 0:00:15.6]} 45. Ne3 {[%clk 0:00:05.2]} 45...
Bd6 {[%clk 0:00:15.6]} 46. Nxd5 {[%clk 0:00:05.4]} 46... Bxf4 {[%clk 0:00:15.7]}
47. Nxf4 {[%clk 0:00:05.6]} 47... Kg7 {[%clk 0:00:15.3]} 48. Kb2 {[%clk
0:00:04.7]} 48... f5 {[%clk 0:00:16.2]} 49. gxf5 {[%clk 0:00:05]} 49... Kf6
{[%clk 0:00:16.2]} 50. d5 {[%clk 0:00:05]} 50... Kxf5 {[%clk 0:00:17.1]} 51. Nd3
{[%clk 0:00:05.6]} 51... Kg5 {[%clk 0:00:16.3]} 52. d6 {[%clk 0:00:05]} 52...
Kf6 {[%clk 0:00:17]} 53. c4 {[%clk 0:00:05.5]} 53... Ke6 {[%clk 0:00:17.9]} 54.
c5 {[%clk 0:00:06.4]} 54... Kd7 {[%clk 0:00:18.5]} 55. Ka3 {[%clk 0:00:06.8]}
55... f6 {[%clk 0:00:19.4]} 56. Kxa4 {[%clk 0:00:07.7]} 56... Kc6 {[%clk
0:00:20.1]} 57. Kb4 {[%clk 0:00:08]} 1-0

[Event "Late-Titled-Tuesday-Blitz-April-02-2024"]
[Site "Chess.com"]
[Date "2024.04.02"]
[Round "2"]
[White "BabageldiAnnaberdiyev"]
[Black "AryanTari"]
[Result "0-1"]
[WhiteElo "2598"]
[BlackElo "2962"]
[TimeControl "180+1"]
[EndTime "14:17:53 PDT"]
[Termination "AryanTari won by resignation"]

1. e4 {[%clk 0:03:00.9]} 1... e5 {[%clk 0:02:59.1]} 2. Nf3 {[%clk 0:03:00.8]}
2... Nc6 {[%clk 0:02:59.2]} 3. Bc4 {[%clk 0:03:01.1]} 3... Nf6 {[%clk
0:02:58.6]} 4. d4 {[%clk 0:03:01.7]} 4... exd4 {[%clk 0:02:57.4]} 5. O-O {[%clk
0:03:02.3]} 5... Nxe4 {[%clk 0:02:54.9]} 6. Re1 {[%clk 0:03:02.8]} 6... d5
{[%clk 0:02:55.2]} 7. Bxd5 {[%clk 0:03:03.6]} 7... Qxd5 {[%clk 0:02:56]} 8. Nc3
{[%clk 0:03:03.8]} 8... Qd8 {[%clk 0:02:54.4]} 9. Rxe4+ {[%clk 0:03:00.9]} 9...
Be7 {[%clk 0:02:51.2]} 10. Nxd4 {[%clk 0:03:01.4]} 10... Bd7 {[%clk 0:02:39.5]}
11. Nd5 {[%clk 0:02:44.7]} 11... Kf8 {[%clk 0:02:02.1]} 12. Nxe7 {[%clk
0:02:36.9]} 12... Nxe7 {[%clk 0:02:00.9]} 13. Bg5 {[%clk 0:02:36.4]} 13... f6
{[%clk 0:01:59.7]} 14. Qf3 {[%clk 0:02:17.9]} 14... Nc6 {[%clk 0:01:44.8]} 15.
Rae1 {[%clk 0:02:11.4]} 15... h5 {[%clk 0:01:22.2]} 16. h3 {[%clk 0:02:06.5]}
16... Kg8 {[%clk 0:01:12.8]} 17. Qb3+ {[%clk 0:01:42.5]} 17... Kh7 {[%clk
0:01:13]} 18. Nxc6 {[%clk 0:01:34.2]} 18... Bxc6 {[%clk 0:01:09.7]} 19. Re7
{[%clk 0:01:30]} 19... fxg5 {[%clk 0:00:27.8]} 20. Qf7 {[%clk 0:01:25.7]} 20...
Qf8 {[%clk 0:00:28.2]} 21. Qxh5+ {[%clk 0:01:17.3]} 21... Kg8 {[%clk 0:00:28.7]}
22. Qxg5 {[%clk 0:01:04.4]} 22... Re8 {[%clk 0:00:26.3]} 23. Rxe8 {[%clk
0:00:51.7]} 23... Bxe8 {[%clk 0:00:27.2]} 24. Qd5+ {[%clk 0:00:51.2]} 24... Kh7
{[%clk 0:00:27.7]} 25. Qxb7 {[%clk 0:00:50.2]} 25... Qd6 {[%clk 0:00:26]} 26.
Qxa7 {[%clk 0:00:44.6]} 26... Bg6 {[%clk 0:00:25.7]} 27. c3 {[%clk 0:00:31]}
27... Qd2 {[%clk 0:00:25.8]} 28. Qe3 {[%clk 0:00:16.8]} 28... Qxb2 {[%clk
0:00:23.3]} 29. Qd4 {[%clk 0:00:13.2]} 29... Rf8 {[%clk 0:00:15.8]} 30. Re7
{[%clk 0:00:11.4]} 30... Qc1+ {[%clk 0:00:16.1]} 31. Kh2 {[%clk 0:00:10.6]}
31... Qf4+ {[%clk 0:00:16.7]} 32. Qxf4 {[%clk 0:00:07.7]} 32... Rxf4 {[%clk
0:00:17.6]} 33. Rxc7 {[%clk 0:00:07.7]} 33... Rxf2 {[%clk 0:00:18]} 34. Kg3
{[%clk 0:00:05.9]} 34... Rxa2 {[%clk 0:00:17.8]} 35. Kf3 {[%clk 0:00:05.5]}
35... Rc2 {[%clk 0:00:13.4]} 36. c4 {[%clk 0:00:05.3]} 36... Bf5 {[%clk
0:00:13.1]} 37. h4 {[%clk 0:00:05.4]} 37... Be6 {[%clk 0:00:13.5]} 38. c5 {[%clk
0:00:05.4]} 38... Bd5+ {[%clk 0:00:14.1]} 39. Kf4 {[%clk 0:00:06]} 39... Rxg2
{[%clk 0:00:14.3]} 40. Ke5 {[%clk 0:00:04.6]} 40... Bf3 {[%clk 0:00:14.7]} 41.
Rf7 {[%clk 0:00:02.7]} 41... Ba8 {[%clk 0:00:13.2]} 42. Kd6 {[%clk 0:00:03.1]}
42... Rd2+ {[%clk 0:00:13.4]} 43. Kc7 {[%clk 0:00:02.6]} 43... Rc2 {[%clk
0:00:14]} 44. Rf5 {[%clk 0:00:02.5]} 44... Rc4 {[%clk 0:00:14]} 45. Re5 {[%clk
0:00:02.9]} 45... Rxh4 {[%clk 0:00:13.9]} 46. Kb8 {[%clk 0:00:03.3]} 46... Bf3
{[%clk 0:00:13.3]} 47. Kc7 {[%clk 0:00:03.8]} 47... Rc4 {[%clk 0:00:13.6]} 48.
Kd6 {[%clk 0:00:04.2]} 48... Kh6 {[%clk 0:00:13.9]} 49. Re6+ {[%clk 0:00:04.4]}
49... g6 {[%clk 0:00:14.4]} 50. Rf6 {[%clk 0:00:04.9]} 50... Be4 {[%clk
0:00:14.3]} 51. Re6 {[%clk 0:00:05.3]} 51... Kg5 {[%clk 0:00:14.5]} 52. Re5+
{[%clk 0:00:05.3]} 52... Kf4 {[%clk 0:00:14.8]} 53. Re6 {[%clk 0:00:05.3]} 53...
g5 {[%clk 0:00:15.4]} 54. Rf6+ {[%clk 0:00:05.8]} 54... Ke3 {[%clk 0:00:15.7]}
55. Re6 {[%clk 0:00:06.2]} 55... g4 {[%clk 0:00:16.1]} 56. Re7 {[%clk
0:00:04.6]} 56... g3 {[%clk 0:00:16.4]} 57. Rg7 {[%clk 0:00:05.5]} 57... g2
{[%clk 0:00:17]} 58. Ke5 {[%clk 0:00:05.2]} 58... Rxc5+ {[%clk 0:00:16.2]} 59.
Kd6 {[%clk 0:00:05.9]} 59... Rc1 {[%clk 0:00:17.1]} 0-1

[Event "Late-Titled-Tuesday-Blitz-April-02-2024"]
[Site "Chess.com"]
[Date "2024.04.02"]
[Round "2"]
[White "flawian2008"]
[Black "Sina_Movahed"]
[Result "0-1"]
[WhiteElo "2530"]
[BlackElo "2982"]
[TimeControl "180+1"]
[EndTime "14:18:01 PDT"]
[Termination "Sina_Movahed won by resignation"]

1. e4 {[%clk 0:02:33.9]} 1... c5 {[%clk 0:02:59.7]} 2. Nf3 {[%clk 0:02:34.4]}
2... d6 {[%clk 0:03:00.4]} 3. d4 {[%clk 0:02:35]} 3... cxd4 {[%clk 0:03:01.3]}
4. Nxd4 {[%clk 0:02:35.9]} 4... Nf6 {[%clk 0:03:01.4]} 5. f3 {[%clk 0:02:36.6]}
5... g6 {[%clk 0:03:02.1]} 6. c4 {[%clk 0:02:36.8]} 6... Bg7 {[%clk 0:03:02]} 7.
Nc3 {[%clk 0:02:37.5]} 7... O-O {[%clk 0:03:02.7]} 8. Be3 {[%clk 0:02:38.3]}
8... Nc6 {[%clk 0:03:03.4]} 9. Qd2 {[%clk 0:02:38.7]} 9... Nxd4 {[%clk
0:03:03.6]} 10. Bxd4 {[%clk 0:02:39.6]} 10... Be6 {[%clk 0:03:04]} 11. b3 {[%clk
0:02:39.4]} 11... Qa5 {[%clk 0:03:03.6]} 12. Be2 {[%clk 0:02:38.8]} 12... Rfc8
{[%clk 0:03:03.2]} 13. Rc1 {[%clk 0:02:36]} 13... a6 {[%clk 0:02:50.8]} 14. Be3
{[%clk 0:02:26]} 14... Nd7 {[%clk 0:02:12.3]} 15. O-O {[%clk 0:02:04.7]} 15...
b5 {[%clk 0:01:52.3]} 16. Nd5 {[%clk 0:01:59.1]} 16... Qxd2 {[%clk 0:01:48.6]}
17. Bxd2 {[%clk 0:01:57]} 17... Bxd5 {[%clk 0:01:49]} 18. exd5 {[%clk
0:01:54.7]} 18... Bd4+ {[%clk 0:01:45]} 19. Kh1 {[%clk 0:01:54.8]} 19... bxc4
{[%clk 0:01:44.7]} 20. Bxc4 {[%clk 0:01:54.9]} 20... a5 {[%clk 0:01:42]} 21.
Rfe1 {[%clk 0:01:53.6]} 21... Bf6 {[%clk 0:01:38.9]} 22. Bb5 {[%clk 0:01:45.2]}
22... Nc5 {[%clk 0:01:24]} 23. Bc6 {[%clk 0:01:44.3]} 23... Rab8 {[%clk
0:01:15.6]} 24. Rc4 {[%clk 0:01:35.8]} 24... Nd3 {[%clk 0:01:08.7]} 25. Re2
{[%clk 0:01:28.3]} 25... Nb4 {[%clk 0:01:02.6]} 26. Bxb4 {[%clk 0:01:19.2]}
26... Rxb4 {[%clk 0:01:03.5]} 27. Ree4 {[%clk 0:01:14.2]} 27... Rcb8 {[%clk
0:01:01.6]} 28. Kg1 {[%clk 0:01:11]} 28... Be5 {[%clk 0:00:52.3]} 29. g3 {[%clk
0:01:10.8]} 29... f5 {[%clk 0:00:45.5]} 30. Rh4 {[%clk 0:01:09.2]} 30... Bf6
{[%clk 0:00:42.6]} 31. Rhf4 {[%clk 0:01:05.9]} 31... Kf7 {[%clk 0:00:39.4]} 32.
Kf2 {[%clk 0:01:04.4]} 32... Be5 {[%clk 0:00:35.3]} 33. Rh4 {[%clk 0:01:04]}
33... h5 {[%clk 0:00:34]} 34. Ke2 {[%clk 0:01:02.4]} 34... Kf6 {[%clk
0:00:31.5]} 35. Kd3 {[%clk 0:00:55.6]} 35... Rxc4 {[%clk 0:00:27.8]} 36. Rxc4
{[%clk 0:00:54.7]} 36... g5 {[%clk 0:00:28]} 37. f4 {[%clk 0:00:53.7]} 37...
gxf4 {[%clk 0:00:27.6]} 38. gxf4 {[%clk 0:00:54.6]} 38... Bb2 {[%clk 0:00:27.3]}
39. Ra4 {[%clk 0:00:52.9]} 39... Rb4 {[%clk 0:00:19.3]} 40. Rxa5 {[%clk
0:00:42.9]} 40... Rxf4 {[%clk 0:00:19]} 41. Ra8 {[%clk 0:00:43.8]} 41... Rf3+
{[%clk 0:00:18.5]} 42. Ke2 {[%clk 0:00:43.1]} 42... Rh3 {[%clk 0:00:14.2]} 43.
a4 {[%clk 0:00:38.5]} 43... Rxh2+ {[%clk 0:00:14]} 44. Kf3 {[%clk 0:00:39.2]}
44... Rh3+ {[%clk 0:00:14.4]} 45. Kg2 {[%clk 0:00:34.7]} 45... Rxb3 {[%clk
0:00:15.1]} 46. a5 {[%clk 0:00:35.4]} 46... Ra3 {[%clk 0:00:15.5]} 47. a6 {[%clk
0:00:36.1]} 47... Bd4 {[%clk 0:00:16.2]} 48. Bb7 {[%clk 0:00:33.1]} 48... h4
{[%clk 0:00:16.4]} 49. Rh8 {[%clk 0:00:30.4]} 49... Kg5 {[%clk 0:00:16.2]} 50.
Re8 {[%clk 0:00:25.2]} 50... h3+ {[%clk 0:00:15.6]} 51. Kh1 {[%clk 0:00:23.3]}
51... Be5 {[%clk 0:00:14.3]} 52. Rg8+ {[%clk 0:00:15.9]} 52... Kf4 {[%clk
0:00:14]} 53. Kh2 {[%clk 0:00:14.4]} 53... Ke4+ {[%clk 0:00:14.4]} 54. Kh1
{[%clk 0:00:13.4]} 54... f4 {[%clk 0:00:12.4]} 55. Bc8 {[%clk 0:00:12.3]} 55...
Ra1+ {[%clk 0:00:11.5]} 56. Kh2 {[%clk 0:00:11.1]} 56... f3+ {[%clk 0:00:10.8]}
57. Kxh3 {[%clk 0:00:10.9]} 57... Rh1+ {[%clk 0:00:11.3]} 58. Kg4 {[%clk
0:00:06.3]} 58... Rg1+ {[%clk 0:00:12]} 59. Kh5 {[%clk 0:00:06.9]} 59... Rxg8
{[%clk 0:00:12.9]} 60. a7 {[%clk 0:00:07.5]} 60... Rxc8 {[%clk 0:00:12.6]} 0-1

[Event "Late-Titled-Tuesday-Blitz-April-02-2024"]
[Site "Chess.com"]
[Date "2024.04.02"]
[Round "2"]
[White "GMG"]
[Black "WilsonPalencia21"]
[Result "1/2-1/2"]
[WhiteElo "2785"]
[BlackElo "2561"]
[TimeControl "180+1"]
[EndTime "14:18:05 PDT"]
[Termination "Game drawn by repetition"]

1. d4 {[%clk 0:02:58.3]} 1... Nf6 {[%clk 0:02:59.2]} 2. c4 {[%clk 0:02:58.7]}
2... c5 {[%clk 0:02:58.8]} 3. Nf3 {[%clk 0:02:58]} 3... g6 {[%clk 0:02:58.6]} 4.
d5 {[%clk 0:02:56.6]} 4... Bg7 {[%clk 0:02:58.6]} 5. Nc3 {[%clk 0:02:56.5]} 5...
O-O {[%clk 0:02:58.5]} 6. e4 {[%clk 0:02:57.2]} 6... d6 {[%clk 0:02:59]} 7. Bd3
{[%clk 0:02:57.8]} 7... Bg4 {[%clk 0:02:58.6]} 8. h3 {[%clk 0:02:57.7]} 8...
Bxf3 {[%clk 0:02:58.9]} 9. Qxf3 {[%clk 0:02:58.6]} 9... Na6 {[%clk 0:02:58.8]}
10. O-O {[%clk 0:02:55.8]} 10... Nc7 {[%clk 0:02:57.9]} 11. Qe2 {[%clk
0:02:47.5]} 11... e6 {[%clk 0:02:57.4]} 12. a4 {[%clk 0:02:40.4]} 12... exd5
{[%clk 0:02:57.2]} 13. cxd5 {[%clk 0:02:38.2]} 13... Nh5 {[%clk 0:02:55.8]} 14.
Ra3 {[%clk 0:02:30.8]} 14... Re8 {[%clk 0:02:46.7]} 15. g4 {[%clk 0:02:30.1]}
15... Nf6 {[%clk 0:02:45.8]} 16. Bf4 {[%clk 0:02:20.9]} 16... h5 {[%clk
0:02:44.9]} 17. Qf3 {[%clk 0:02:17]} 17... hxg4 {[%clk 0:02:43.7]} 18. hxg4
{[%clk 0:02:17.9]} 18... Qd7 {[%clk 0:02:43.2]} 19. Be2 {[%clk 0:02:15.1]} 19...
a6 {[%clk 0:02:39.4]} 20. g5 {[%clk 0:02:03.4]} 20... Nh5 {[%clk 0:02:14.5]} 21.
Bc1 {[%clk 0:01:52.9]} 21... b5 {[%clk 0:02:05.9]} 22. axb5 {[%clk 0:01:51.6]}
22... axb5 {[%clk 0:02:05.9]} 23. Rxa8 {[%clk 0:01:50.9]} 23... Rxa8 {[%clk
0:02:05.3]} 24. Qh1 {[%clk 0:01:43.2]} 24... b4 {[%clk 0:01:53.3]} 25. Nd1
{[%clk 0:01:43.5]} 25... Re8 {[%clk 0:01:52.1]} 26. Bxh5 {[%clk 0:01:38]} 26...
gxh5 {[%clk 0:01:51.5]} 27. f3 {[%clk 0:01:37.7]} 27... Bd4+ {[%clk 0:01:44.6]}
28. Kg2 {[%clk 0:01:36.1]} 28... Kg7 {[%clk 0:01:40.3]} 29. Qh4 {[%clk
0:01:19.1]} 29... Qb5 {[%clk 0:01:30]} 30. Be3 {[%clk 0:00:25.7]} 30... Qe2+
{[%clk 0:01:15.8]} 31. Qf2 {[%clk 0:00:25.3]} 31... Qxf2+ {[%clk 0:01:10.9]} 32.
Kxf2 {[%clk 0:00:26.2]} 32... Nb5 {[%clk 0:01:03.2]} 33. Ke2 {[%clk 0:00:22.2]}
33... Ra8 {[%clk 0:01:01]} 34. Kd3 {[%clk 0:00:18.1]} 34... Ra2 {[%clk
0:00:55.5]} 35. Bxd4+ {[%clk 0:00:17]} 35... Nxd4 {[%clk 0:00:54.9]} 36. f4
{[%clk 0:00:17.6]} 36... f6 {[%clk 0:00:49.8]} 37. Rg1 {[%clk 0:00:17.2]} 37...
f5 {[%clk 0:00:45.8]} 38. e5 {[%clk 0:00:16.4]} 38... dxe5 {[%clk 0:00:46.5]}
39. fxe5 {[%clk 0:00:17.1]} 39... Nf3 {[%clk 0:00:47.1]} 40. Rf1 {[%clk
0:00:11.6]} 40... Nxe5+ {[%clk 0:00:47]} 41. Kc2 {[%clk 0:00:12.2]} 41... Kg6
{[%clk 0:00:45.2]} 42. Ne3 {[%clk 0:00:12.9]} 42... c4 {[%clk 0:00:33.7]} 43.
Rxf5 {[%clk 0:00:10.9]} 43... Ng4 {[%clk 0:00:31.8]} 44. Rf3 {[%clk 0:00:09.3]}
44... c3 {[%clk 0:00:29.4]} 45. Nd1 {[%clk 0:00:09.4]} 45... Kxg5 {[%clk
0:00:21.6]} 46. Kb3 {[%clk 0:00:09.2]} 46... Ra1 {[%clk 0:00:21.3]} 47. Ne3
{[%clk 0:00:06.1]} 47... Rb1 {[%clk 0:00:21.7]} 48. Nc4 {[%clk 0:00:06.2]} 48...
h4 {[%clk 0:00:19.5]} 49. d6 {[%clk 0:00:06.1]} 49... Rd1 {[%clk 0:00:17.2]} 50.
bxc3 {[%clk 0:00:05.3]} 50... bxc3 {[%clk 0:00:17.2]} 51. Kxc3 {[%clk
0:00:06.2]} 51... Rc1+ {[%clk 0:00:16.1]} 52. Kb3 {[%clk 0:00:05.4]} 52... Rxc4
{[%clk 0:00:16.8]} 53. Kxc4 {[%clk 0:00:05.1]} 53... Ne5+ {[%clk 0:00:17.1]} 54.
Kd5 {[%clk 0:00:05.7]} 54... Nxf3 {[%clk 0:00:17.6]} 55. d7 {[%clk 0:00:06.4]}
55... h3 {[%clk 0:00:18.1]} 56. d8=Q+ {[%clk 0:00:06.9]} 56... Kg4 {[%clk
0:00:17.6]} 57. Ke4 {[%clk 0:00:07]} 57... Ng5+ {[%clk 0:00:17.5]} 58. Ke3
{[%clk 0:00:07]} 58... h2 {[%clk 0:00:18.2]} 59. Qa8 {[%clk 0:00:06.3]} 59...
Kg3 {[%clk 0:00:17.7]} 60. Qh1 {[%clk 0:00:06.4]} 60... Nh3 {[%clk 0:00:17.8]}
61. Qe1+ {[%clk 0:00:05.4]} 61... Kg2 {[%clk 0:00:18]} 62. Qe2+ {[%clk
0:00:05.5]} 62... Kg1 {[%clk 0:00:18.3]} 63. Qe1+ {[%clk 0:00:05.6]} 63... Kg2
{[%clk 0:00:18.8]} 64. Qe2+ {[%clk 0:00:06.2]} 64... Kg1 {[%clk 0:00:19.4]} 65.
Qe1+ {[%clk 0:00:06.4]} 65... Kg2 {[%clk 0:00:20]} 1/2-1/2

[Event "Late-Titled-Tuesday-Blitz-April-02-2024"]
[Site "Chess.com"]
[Date "2024.04.02"]
[Round "2"]
[White "wild3000"]
[Black "LeninGuerra"]
[Result "0-1"]
[WhiteElo "2376"]
[BlackElo "2725"]
[TimeControl "180+1"]
[EndTime "14:18:13 PDT"]
[Termination "LeninGuerra won by checkmate"]

1. d4 {[%clk 0:02:58.3]} 1... Nf6 {[%clk 0:02:58.4]} 2. Nf3 {[%clk 0:02:58.1]}
2... c5 {[%clk 0:02:58.5]} 3. e3 {[%clk 0:02:57.9]} 3... cxd4 {[%clk 0:02:58.6]}
4. exd4 {[%clk 0:02:58.2]} 4... b6 {[%clk 0:02:59.1]} 5. c4 {[%clk 0:02:55]}
5... Bb7 {[%clk 0:02:59.5]} 6. Nc3 {[%clk 0:02:55.3]} 6... e6 {[%clk 0:02:59.6]}
7. Be2 {[%clk 0:02:55.1]} 7... Be7 {[%clk 0:02:59.9]} 8. O-O {[%clk 0:02:55.1]}
8... O-O {[%clk 0:03:00.3]} 9. d5 {[%clk 0:02:51.2]} 9... exd5 {[%clk
0:03:00.2]} 10. cxd5 {[%clk 0:02:51]} 10... d6 {[%clk 0:03:00.7]} 11. Nd4 {[%clk
0:02:45.6]} 11... Re8 {[%clk 0:02:58.8]} 12. Bf3 {[%clk 0:02:45.6]} 12... Bf8
{[%clk 0:02:57.4]} 13. Bg5 {[%clk 0:02:44.7]} 13... h6 {[%clk 0:02:57.5]} 14.
Bh4 {[%clk 0:02:44.7]} 14... a6 {[%clk 0:02:49.9]} 15. Qd2 {[%clk 0:02:32.7]}
15... Nbd7 {[%clk 0:02:46.2]} 16. Nc6 {[%clk 0:02:30.4]} 16... Bxc6 {[%clk
0:02:46.2]} 17. dxc6 {[%clk 0:02:30.6]} 17... Ne5 {[%clk 0:02:46.7]} 18. Bd5
{[%clk 0:02:22.4]} 18... Rc8 {[%clk 0:02:41.2]} 19. Rfe1 {[%clk 0:02:08.9]}
19... Be7 {[%clk 0:02:39.1]} 20. Bxf6 {[%clk 0:02:03.1]} 20... Bxf6 {[%clk
0:02:38.8]} 21. Ne4 {[%clk 0:02:01.5]} 21... Be7 {[%clk 0:02:18.9]} 22. Rac1
{[%clk 0:01:59.9]} 22... Bf8 {[%clk 0:02:17.5]} 23. a4 {[%clk 0:01:53.5]} 23...
b5 {[%clk 0:02:08.4]} 24. axb5 {[%clk 0:01:46.8]} 24... axb5 {[%clk 0:02:09.3]}
25. b3 {[%clk 0:01:47.1]} 25... Qb6 {[%clk 0:02:05]} 26. Qf4 {[%clk 0:01:34.3]}
26... Rc7 {[%clk 0:01:58.8]} 27. h3 {[%clk 0:01:26.4]} 27... Kh8 {[%clk
0:01:43.4]} 28. Re3 {[%clk 0:01:11.8]} 28... Qd4 {[%clk 0:01:25.2]} 29. Bxf7
{[%clk 0:00:27.3]} 29... Rxf7 {[%clk 0:01:18.1]} 30. Qg3 {[%clk 0:00:23.6]}
30... Nxc6 {[%clk 0:01:07.3]} 31. Rxc6 {[%clk 0:00:17]} 31... Rxe4 {[%clk
0:01:04.9]} 32. Rxe4 {[%clk 0:00:16.5]} 32... Qxe4 {[%clk 0:01:04]} 33. Rc8
{[%clk 0:00:17.3]} 33... Kh7 {[%clk 0:01:02.9]} 34. h4 {[%clk 0:00:15.7]} 34...
Be7 {[%clk 0:00:52.4]} 35. f3 {[%clk 0:00:13.8]} 35... Qxh4 {[%clk 0:00:45.6]}
36. Qxh4 {[%clk 0:00:13.9]} 36... Bxh4 {[%clk 0:00:45]} 37. Rb8 {[%clk
0:00:13.7]} 37... Rf5 {[%clk 0:00:44.5]} 38. Kf1 {[%clk 0:00:12.3]} 38... Re5
{[%clk 0:00:43.2]} 39. g3 {[%clk 0:00:12.5]} 39... Bxg3 {[%clk 0:00:43.8]} 40.
Kg2 {[%clk 0:00:13.4]} 40... Bf4 {[%clk 0:00:44.4]} 41. Re8 {[%clk 0:00:13.1]}
41... Rxe8 {[%clk 0:00:41.3]} 42. Kh3 {[%clk 0:00:12.7]} 42... g5 {[%clk
0:00:40.4]} 43. Kg4 {[%clk 0:00:13.6]} 43... Kg6 {[%clk 0:00:40.6]} 44. b4
{[%clk 0:00:12.9]} 44... h5+ {[%clk 0:00:40]} 45. Kh3 {[%clk 0:00:13.8]} 45...
d5 {[%clk 0:00:38.6]} 46. Kg2 {[%clk 0:00:13.6]} 46... d4 {[%clk 0:00:38.7]} 47.
Kf1 {[%clk 0:00:14.5]} 47... d3 {[%clk 0:00:38.4]} 48. Kg2 {[%clk 0:00:15.4]}
48... d2 {[%clk 0:00:37.8]} 49. Kh3 {[%clk 0:00:15.8]} 49... d1=B {[%clk
0:00:35.4]} 50. Kg2 {[%clk 0:00:16.7]} 50... Bd2 {[%clk 0:00:34.8]} 51. Kf2
{[%clk 0:00:16.9]} 51... Bxb4 {[%clk 0:00:34.6]} 52. Kf1 {[%clk 0:00:17.1]}
52... Bc5 {[%clk 0:00:34.5]} 53. Kg2 {[%clk 0:00:16.1]} 53... b4 {[%clk
0:00:35.1]} 54. f4 {[%clk 0:00:16.5]} 54... g4 {[%clk 0:00:33.7]} 55. Kh2 {[%clk
0:00:17.4]} 55... Kf5 {[%clk 0:00:33.1]} 56. Kg3 {[%clk 0:00:17.7]} 56... b3
{[%clk 0:00:33.4]} 57. Kh4 {[%clk 0:00:18]} 57... b2 {[%clk 0:00:33.1]} 58. Kg3
{[%clk 0:00:18.9]} 58... b1=N {[%clk 0:00:32.3]} 59. Kg2 {[%clk 0:00:19.8]}
59... Nc3 {[%clk 0:00:32.3]} 60. Kg3 {[%clk 0:00:20.2]} 60... Ne4+ {[%clk
0:00:31.9]} 61. Kg2 {[%clk 0:00:21.1]} 61... h4 {[%clk 0:00:30.9]} 62. Kh2
{[%clk 0:00:22]} 62... Bg1+ {[%clk 0:00:29.8]} 63. Kh1 {[%clk 0:00:22]} 63...
Bf3+ {[%clk 0:00:29.6]} 64. Kxg1 {[%clk 0:00:21.8]} 64... g3 {[%clk 0:00:29.3]}
65. Kf1 {[%clk 0:00:21.9]} 65... h3 {[%clk 0:00:28.7]} 66. Kg1 {[%clk
0:00:22.8]} 66... h2+ {[%clk 0:00:28.6]} 67. Kf1 {[%clk 0:00:22.6]} 67... Kxf4
{[%clk 0:00:28]} 68. Ke1 {[%clk 0:00:21.9]} 68... h1=N {[%clk 0:00:23]} 69. Kf1
{[%clk 0:00:20.8]} 69... Nhf2 {[%clk 0:00:23.3]} 70. Kg1 {[%clk 0:00:20.3]}
70... Ng5 {[%clk 0:00:21.9]} 71. Kf1 {[%clk 0:00:20.5]} 71... Re6 {[%clk
0:00:19.6]} 72. Kg1 {[%clk 0:00:20.5]} 72... Ngh3+ {[%clk 0:00:20.1]} 73. Kf1
{[%clk 0:00:21.4]} 73... g2# {[%clk 0:00:20.7]} 0-1